Workbook

Sheet ресурсное
H1: Приложение 3
H2: к постановлению администрации города Усолье-Сибирское
H3: от 07.11.2025 г. № 2026-па
H5: «Приложение 3
G6: к муниципальной программе города Усолье-Сибирское
F7: «Формирование современной городской среды» на 2018-2030 годы
A9: Ресурсное обеспечение реализации муниципальной программы города Усолье-Сибирское «Формирование современной городской среды» на 2018-2030 годы (далее - Программа)
A11: Наименование программы, подпрограммы, основного мероприятия, мероприятия, проекта | B11: Ответственный исполнитель Программы, соисполнители Программы, участники Программы, участники подпрограммы | C11: Источник финансирования | D11: Общий объем финансирования, руб. | E11: Объем финансирования, руб.
E12: 2018 год | F12: 2019 год | G12: 2020 год | H12: 2021 год | I12: 2022 год | J12: 2023 год | K12: 2024 год | L12: 2025 год | M12: 2026 год | N12: 2027 год | O12: 2028 год | P12: 2029 год | Q12: 2030 год
A13: 1 | B13: 2 | C13: 3 | D13: 4 | E13: 5 | F13: 6 | G13: 7 | H13: 8 | I13: 9 | J13: 10 | K13: 11 | L13: 12 | M13: 13 | N13: 13 | O13: 13 | P13: 13 | Q13: 13
A14: Муниципальная программа города Усолье-Сибирское «Формирование современной городской среды» на 2018-2030 годы | B14: Комитет по городскому хозяйству администрации города Усолье-Сибирское | C14: Всего | D14: =SUM(E14:Q14) -> 815,909,180.51 | E14: =E19 -> 43,902,538.94 | F14: =F19 -> 64,045,216.06 | G14: =G15+G16+G17+G18 -> 86,901,811.42 | H14: =H15+H16+H17+H18 -> 154,794,627.56 | I14: 41,240,531.56 | J14: =J19 -> 166,036,196.05 | K14: =K19 -> 217,539,713.58 | L14: =L19 -> 27,248,545.34 | M14: =M19 -> 9,400,000.00 | N14: 1,200,000.00 | O14: 1,200,000.00 | P14: 1,200,000.00 | Q14: 1,200,000.00
C15: Местный бюджет | D15: =SUM(E15:Q15) -> 96,912,582.48 | E15: =E20 -> 1,336,011.72 | F15: =F20 -> 4,951,546.19 | G15: =G20 -> 1,964,946.37 | H15: =H20 -> 8,879,557.47 | I15: 1,407,131.56 | J15: =J20 -> 22,035,490.32 | K15: =K20 -> 41,129,853.51 | L15: =L20 -> 1,008,045.34 | M15: 9,400,000.00 | N15: 1,200,000.00 | O15: 1,200,000.00 | P15: 1,200,000.00 | Q15: 1,200,000.00
C16: Областной бюджет | D16: 142,091,425.59 | E16: =E21 -> 12,023,605.47 | F16: 10,194,383.22 | G16: =G21 -> 16,275,463.82 | H16: =H21 -> 30,652,664.11 | I16: 8,092,062.37 | J16: 18,157,043.59 | K16: =K21 -> 45,384,177.41 | L16: =L21 -> 1,312,025.60 | M16: =M21 -> 0.00 | N16: 0.00 | O16: 0.00 | P16: 0.00 | Q16: 0.00
C17: Федеральный бюджет | D17: 574,520,450.54 | E17: 30,542,921.75 | F17: 46,514,564.75 | G17: 68,661,401.23 | H17: 115,262,405.98 | I17: =I22 -> 31,741,337.63 | J17: =J22 -> 125,843,662.14 | K17: 131,025,682.66 | L17: =L22 -> 24,928,474.40 | M17: =M22 -> 0.00 | N17: 0.00 | O17: 0.00 | P17: 0.00 | Q17: 0.00
C18: Целевые средства | D18: 2,384,721.90 | E18: 0.00 | F18: =F23 -> 2,384,721.90 | G18: 0.00 | H18: 0.00 | I18: 0.00 | J18: 0.00 | K18: 0.00 | L18: 0.00 | M18: 0.00 | N18: 0.00 | O18: 0.00 | P18: 0.00 | Q18: 0.00
A19: Подпрограмма «Развитие благоустройства территории города Усолье-Сибирское» на 2018-2030 годы | B19: Отдел по благоустройству и экологии комитета по городскому хозяйству администрации города Усолье-Сибирское | C19: Всего | D19: =SUM(E19:Q19) -> 815,909,180.51 | E19: =SUM(E20:E23) -> 43,902,538.94 | F19: =SUM(F20:F23) -> 64,045,216.06 | G19: =SUM(G20:G23) -> 86,901,811.42 | H19: =SUM(H20:H23) -> 154,794,627.56 | I19: =SUM(I20:I23) -> 41,240,531.56 | J19: =SUM(J20:J23) -> 166,036,196.05 | K19: =SUM(K20:K23) -> 217,539,713.58 | L19: =SUM(L20:L23) -> 27,248,545.34 | M19: =SUM(M20:M23) -> 9,400,000.00 | N19: 1,200,000.00 | O19: 1,200,000.00 | P19: 1,200,000.00 | Q19: 1,200,000.00
C20: Местный бюджет | D20: =SUM(E20:Q20) -> 96,912,582.48 | E20: =E25 -> 1,336,011.72 | F20: 4,951,546.19 | G20: =G25 -> 1,964,946.37 | H20: =H47+H73+H78 -> 8,879,557.47 | I20: 1,407,131.56 | J20: 22,035,490.32 | K20: =K47+K73+K78 -> 41,129,853.51 | L20: 1,008,045.34 | M20: =M47+M73+M78 -> 9,400,000.00 | N20: =N47+N73+N78 -> 1,200,000.00 | O20: 1,200,000.00 | P20: 1,200,000.00 | Q20: 1,200,000.00
C21: Областной бюджет | D21: 142,091,425.59 | E21: =E26 -> 12,023,605.47 | F21: 10,194,383.22 | G21: =G26 -> 16,275,463.82 | H21: =H48+H79 -> 30,652,664.11 | I21: =I48 -> 8,092,062.37 | J21: =J48+J79 -> 18,157,043.59 | K21: =K48+K79 -> 45,384,177.41 | L21: =L48 -> 1,312,025.60 | M21: =M48 -> 0.00 | N21: 0.00 | O21: 0.00 | P21: 0.00 | Q21: 0.00
C22: Федеральный бюджет | D22: 574,520,450.54 | E22: =E27 -> 30,542,921.75 | F22: 46,514,564.75 | G22: =G27 -> 68,661,401.23 | H22: =H49 -> 115,262,405.98 | I22: =I57+I61 -> 31,741,337.63 | J22: =J57+J61+J68 -> 125,843,662.14 | K22: =K53+K64+K68+K72 -> 131,025,682.66 | L22: =L53+L64+L68+L72 -> 24,928,474.40 | M22: =M53+M64+M68+M72 -> 0.00 | N22: 0.00 | O22: 0.00 | P22: 0.00 | Q22: 0.00
C23: Целевые средства | D23: 2,384,721.90 | E23: =E28 -> 0.00 | F23: 2,384,721.90 | G23: =G28 -> 0.00 | H23: 0.00 | I23: 0.00 | J23: 0.00 | K23: 0.00 | L23: 0.00 | M23: 0.00 | N23: 0.00 | O23: 0.00 | P23: 0.00 | Q23: 0.00
A24: Основное мероприятие 1. Мероприятия в рамках реализации национального проекта «Жильё и городская среда» | B24: Отдел по благоустройству и экологии комитета по городскому хозяйству администрации города Усолье-Сибирское | C24: Всего | D24: =SUM(E24:Q24) -> 194,849,566.42 | E24: =SUM(E25:E28) -> 43,902,538.94 | F24: =SUM(F25:F28) -> 64,045,216.06 | G24: =SUM(G25:G27) -> 86,901,811.42 | H24: =SUM(H25:H27) -> 0.00 | I24: =SUM(I25:I27) -> 0.00 | J24: =SUM(J25:J27) -> 0.00 | K24: 0.00 | L24: =SUM(L25:L27) -> 0.00 | M24: =SUM(M25:M27) -> 0.00 | N24: 0.00 | O24: 0.00 | P24: 0.00 | Q24: 0.00
C25: Местный бюджет | D25: =SUM(E25:Q25) -> 8,252,504.28 | E25: =E30+E34 -> 1,336,011.72 | F25: =F30+F34 -> 4,951,546.19 | G25: =G30+G34+G41+G44 -> 1,964,946.37 | H25: =H30+H34+H41+H44 -> 0.00 | I25: 0.00 | J25: 0.00 | K25: =K30+K34+K41+K44 -> 0.00 | L25: 0.00 | M25: =M30+M34+M41+M44 -> 0.00 | N25: 0.00 | O25: 0.00 | P25: 0.00 | Q25: 0.00
C26: Областной бюджет | D26: 38,493,452.51 | E26: =E31+E35 -> 12,023,605.47 | F26: 10,194,383.22 | G26: =G31+G35+G42 -> 16,275,463.82 | H26: 0.00 | I26: 0.00 | J26: 0.00 | K26: 0.00 | L26: =L31+L35+L42 -> 0.00 | M26: 0.00 | N26: 0.00 | O26: 0.00 | P26: 0.00 | Q26: 0.00
C27: Федеральный бюджет | D27: 145,718,887.73 | E27: =E32+E36 -> 30,542,921.75 | F27: 46,514,564.75 | G27: =G32+G36+G43 -> 68,661,401.23 | H27: =H32+H36+H43 -> 0.00 | I27: =I32+I36+I43 -> 0.00 | J27: 0.00 | K27: 0.00 | L27: =L32+L36+L43 -> 0.00 | M27: =M32+M36+M43 -> 0.00 | N27: 0.00 | O27: 0.00 | P27: 0.00 | Q27: 0.00
C28: Целевые средства | D28: 2,384,721.90 | E28: 0.00 | F28: 2,384,721.90 | G28: 0.00 | H28: 0.00 | I28: 0.00 | J28: 0.00 | K28: 0.00 | L28: 0.00 | M28: 0.00 | N28: 0.00 | O28: 0.00 | P28: 0.00 | Q28: 0.00
A29: Мероприятие 1.1. Благоустройство дворовых территорий многоквартирных домов (Поддержка программ формирования современной городской среды) | B29: Отдел по благоустройству и экологии комитета по городскому хозяйству администрации города Усолье-Сибирское | C29: Всего | D29: =SUM(E29:Q29) -> 93,517,766.70 | E29: =SUM(E30:E32) -> 25,995,670.82 | F29: =SUM(F30:F32) -> 39,817,981.61 | G29: 27,704,114.27 | H29: 0.00 | I29: =SUM(I30:I32) -> 0.00 | J29: =SUM(J30:J32) -> 0.00 | K29: 0.00 | L29: =SUM(L30:L32) -> 0.00 | M29: =SUM(M30:M32) -> 0.00 | N29: 0.00 | O29: 0.00 | P29: 0.00 | Q29: 0.00
C30: Местный бюджет | D30: =SUM(E30:Q30) -> 4,546,046.00 | E30: 791,082.23 | F30: 3,150,564.10 | G30: 604,399.67 | H30: 0.00 | I30: 0.00 | J30: 0.00 | K30: 0.00 | L30: 0.00 | M30: 0.00 | N30: 0.00 | O30: 0.00 | P30: 0.00 | Q30: 0.00
C31: Областной бюджет | D31: 18,858,255.43 | E31: 7,119,444.05 | F31: 6,591,582.44 | G31: 5,147,228.94 | H31: 0.00 | I31: 0.00 | J31: 0.00 | K31: 0.00 | L31: 0.00 | M31: 0.00 | N31: 0.00 | O31: 0.00 | P31: 0.00 | Q31: 0.00
C32: Федеральный бюджет | D32: 70,113,465.27 | E32: 18,085,144.54 | F32: 30,075,835.07 | G32: 21,952,485.66 | H32: 0.00 | I32: 0.00 | J32: 0.00 | K32: 0.00 | L32: 0.00 | M32: 0.00 | N32: 0.00 | O32: 0.00 | P32: 0.00 | Q32: 0.00
A33: Мероприятие 1.2. Благоустройство территорий общего пользования (Поддержка программ формирования современной городской среды) | B33: Отдел по благоустройству и экологии комитета по городскому хозяйству администрации города Усолье-Сибирское | C33: Всего | D33: 61,087,282.94 | E33: =SUM(E34:E37) -> 17,906,868.12 | F33: 24,227,234.45 | G33: =SUM(G34:G37) -> 18,953,180.37 | H33: 0.00 | I33: 0.00 | J33: 0.00 | K33: =SUM(K34:K37) -> 0.00 | L33: =SUM(L34:L37) -> 0.00 | M33: =SUM(M34:M37) -> 0.00 | N33: =SUM(N34:N37) -> 0.00 | O33: 0.00 | P33: 0.00 | Q33: =SUM(Q34:Q37) -> 0.00
C34: Местный бюджет | D34: 2,721,406.49 | E34: 544,929.49 | F34: 1,800,982.09 | G34: 375,494.91 | H34: 0.00 | I34: 0.00 | J34: 0.00 | K34: 0.00 | L34: 0.00 | M34: 0.00 | N34: 0.00 | O34: 0.00 | P34: 0.00 | Q34: 0.00
C35: Областной бюджет | D35: 12,081,091.14 | E35: 4,904,161.42 | F35: 3,602,800.78 | G35: 3,574,128.94 | H35: 0.00 | I35: 0.00 | J35: 0.00 | K35: 0.00 | L35: 0.00 | M35: 0.00 | N35: 0.00 | O35: 0.00 | P35: 0.00 | Q35: 0.00
C36: Федеральный бюджет | D36: 43,900,063.41 | E36: 12,457,777.21 | F36: 16,438,729.68 | G36: 15,003,556.52 | H36: 0.00 | I36: 0.00 | J36: 0.00 | K36: 0.00 | L36: 0.00 | M36: 0.00 | N36: 0.00 | O36: 0.00 | P36: 0.00 | Q36: 0.00
C37: Целевые средства | D37: 2,384,721.90 | E37: 0.00 | F37: 2,384,721.90 | G37: 0.00 | H37: 0.00 | I37: 0.00 | J37: 0.00 | K37: 0.00 | L37: 0.00 | M37: 0.00 | N37: 0.00 | O37: 0.00 | P37: 0.00 | Q37: 0.00
A38: Мероприятие 1.3. Благоустройство объектов недвижимого имущества (включая объекты незавершенного строительства) и земельных участков, находящихся в собственности (пользовании) юридических лиц и индивидуальных предпринимателей в рамках реализации федерального проекта «Формирование комфортной городской среды» | B38: Отдел по благоустройству и экологии комитета по городскому хозяйству администрации города Усолье-Сибирское | C38: Местный бюджет | D38: за счет средств собственников объектов недвижимого имущества и земельных участков, находящихся в собственности (пользовании) юридических лиц и индивидуальных предпринимателей. | E38: за счет средств собственников объектов недвижимого имущества и земельных участков, находящихся в собственности (пользовании) юридических лиц и индивидуальных предпринимателей. | F38: за счет средств собственников объектов недвижимого имущества и земельных участков, находящихся в собственности (пользовании) юридических лиц и индивидуальных предпринимателей. | G38: за счет средств собственников объектов недвижимого имущества и земельных участков, находящихся в собственности (пользовании) юридических лиц и индивидуальных предпринимателей. | H38: - | I38: - | J38: - | K38: - | L38: - | M38: - | N38: - | O38: - | P38: - | Q38: -
A39: Мероприятие 1.4. Мероприятия по проведению работ по образованию земельных участков, на которых расположены многоквартирные дома в рамках реализации федерального проекта «Формирование комфортной городской среды» | B39: Комитет по управлению муниципальным имуществом администрации города Усолье-Сибирское | C39: Местный бюджет | D39: без финансирования | E39: без финансирования | F39: без финансирования | G39: без финансирования | H39: - | I39: - | J39: - | K39: - | L39: - | M39: - | N39: - | O39: - | P39: - | Q39: -
A40: Мероприятие 1.5. Мероприятия по реализации проекта создания комфортной городской среды города Усолье-Сибирское – финалиста Всероссийского конкурса лучших проектов создания комфортной городской среды | B40: Отдел по благоустройству и экологии комитета по городскому хозяйству администрации города Усолье-Сибирское | C40: Всего | D40: =SUM(E40:Q40) -> 40,090,316.78 | E40: 0.00 | F40: 0.00 | G40: =SUM(G41:G43) -> 40,090,316.78 | H40: =SUM(H41:H43) -> 0.00 | I40: =SUM(I41:I43) -> 0.00 | J40: 0.00 | K40: 0.00 | L40: =SUM(L41:L43) -> 0.00 | M40: =SUM(M41:M43) -> 0.00 | N40: 0.00 | O40: 0.00 | P40: 0.00 | Q40: 0.00
C41: Местный бюджет | D41: =SUM(E41:Q41) -> 830,851.79 | E41: 0.00 | F41: 0.00 | G41: 830,851.79 | H41: 0.00 | I41: 0.00 | J41: 0.00 | K41: 0.00 | L41: 0.00 | M41: 0.00 | N41: 0.00 | O41: 0.00 | P41: 0.00 | Q41: 0.00
C42: Областной бюджет | D42: 7,554,105.94 | E42: 0.00 | F42: 0.00 | G42: 7,554,105.94 | H42: 0.00 | I42: 0.00 | J42: 0.00 | K42: 0.00 | L42: 0.00 | M42: 0.00 | N42: 0.00 | O42: 0.00 | P42: 0.00 | Q42: 0.00
C43: Федеральный бюджет | D43: 31,705,359.05 | E43: 0.00 | F43: 0.00 | G43: 31,705,359.05 | H43: 0.00 | I43: 0.00 | J43: 0.00 | K43: 0.00 | L43: 0.00 | M43: 0.00 | N43: 0.00 | O43: 0.00 | P43: 0.00 | Q43: 0.00
A44: Мероприятие 1.6. Мероприятия по реализации проекта «Вся соль Сибири: «Озеро Молодежное», связывающее поколения» – победителя Всероссийского конкурса лучших проектов создания комфортной городской среды | B44: Отдел по благоустройству и экологии комитета по городскому хозяйству администрации города Усолье-Сибирское | C44: Местный бюджет | D44: 154,200.00 | E44: 0.00 | F44: 0.00 | G44: =G45 -> 154,200.00 | H44: 0.00 | I44: 0.00 | J44: 0.00 | K44: 0.00 | L44: 0.00 | M44: 0.00 | N44: 0.00 | O44: 0.00 | P44: 0.00 | Q44: 0.00
A45: Мероприятие 1.6.2. Разработка раздела «Оценка воздействия на водные биоресурсы и среду их обитания по объекту: озеро «Молодёжное»» | B45: Отдел по благоустройству и экологии комитета по городскому хозяйству администрации города Усолье-Сибирское | C45: Местный бюджет | D45: 154,200.00 | E45: 0.00 | F45: 0.00 | G45: 154,200.00 | H45: 0.00 | I45: 0.00 | J45: 0.00 | K45: 0.00 | L45: 0.00 | M45: 0.00 | N45: 0.00 | O45: 0.00 | P45: 0.00 | Q45: 0.00
A46: Основное мероприятие 1. Мероприятия в рамках реализации национального проекта «Жильё и городская среда» (2021-2024 гг.), национального проекта "Инфраструктура для жизни" (2025-2030 гг.) | B46: Отдел по благоустройству и экологии комитета по городскому хозяйству администрации города Усолье-Сибирское | C46: Всего | D46: =SUM(E46:Q46) -> 545,633,121.76 | E46: =SUM(E47:E49) -> 0.00 | F46: 0.00 | G46: 0.00 | H46: 143,799,391.02 | I46: 40,732,600.00 | J46: 150,377,585.40 | K46: =SUM(K47:K49) -> 177,475,000.00 | L46: =SUM(L47:L49) -> 27,248,545.34 | M46: =SUM(M47:M49) -> 1,200,000.00 | N46: 1,200,000.00 | O46: 1,200,000.00 | P46: 1,200,000.00 | Q46: 1,200,000.00
C47: Местный бюджет | D47: =SUM(E47:Q47) -> 30,075,421.76 | E47: =E55+E59 -> 0.00 | F47: =F55+F59 -> 0.00 | G47: =G55+G59+G78 -> 0.00 | H47: =H51 -> 975,791.02 | I47: =I55+I59 -> 899,200.00 | J47: =J55+J59+J66+J70 -> 15,575,285.40 | K47: =K51+K66+K70 -> 5,617,100.00 | L47: =L55+L59+L66+L70 -> 1,008,045.34 | M47: =M55+M59+M66+M70 -> 1,200,000.00 | N47: 1,200,000.00 | O47: 1,200,000.00 | P47: 1,200,000.00 | Q47: 1,200,000.00
C48: Областной бюджет | D48: 86,756,137.19 | E48: =E56+E60 -> 0.00 | F48: =F56+F60 -> 0.00 | G48: =G56+G60 -> 0.00 | H48: =H52+H63 -> 27,561,194.02 | I48: =I56+I60+I85 -> 8,092,062.37 | J48: =J56+J60+J85+J67 -> 8,958,637.86 | K48: =K52+K63+K67+K71 -> 40,832,217.34 | L48: =L52+L63+L67+L71 -> 1,312,025.60 | M48: =M52+M63+M67+M71 -> 0.00 | N48: 0.00 | O48: 0.00 | P48: 0.00 | Q48: =Q52+Q63+Q67+Q71 -> 0.00
C49: Федеральный бюджет | D49: 428,801,562.81 | E49: =E57+E61 -> 0.00 | F49: =F57+F61 -> 0.00 | G49: =G57+G61 -> 0.00 | H49: =H53+H64 -> 115,262,405.98 | I49: =I53+I64 -> 31,741,337.63 | J49: =J53+J64+J68 -> 125,843,662.14 | K49: =K53+K68+K72 -> 131,025,682.66 | L49: =L53+L68+L72 -> 24,928,474.40 | M49: =M57+M61+M68+M72 -> 0.00 | N49: 0.00 | O49: 0.00 | P49: 0.00 | Q49: =Q57+Q61+Q68+Q72 -> 0.00
A50: Мероприятие 1.1. Формирование комфортной городской среды, в т.ч. | B50: Отдел по благоустройству и экологии комитета по городскому хозяйству администрации города Усолье-Сибирское | C50: Всего | D50: =SUM(E50:Q50) -> 205,080,517.36 | E50: =E51+E52+E53 -> 0.00 | F50: =F51+F52+F53 -> 0.00 | G50: =G51+G52+G53 -> 0.00 | H50: =H51+H52+H53 -> 46,807,091.02 | I50: =I51+I52+I53 -> 40,732,600.00 | J50: =J51+J52+J53 -> 41,817,281.00 | K50: =K51+K52+K53 -> 42,475,000.00 | L50: =L51+L52+L53 -> 27,248,545.34 | M50: =M51+M52+M53 -> 1,200,000.00 | N50: =N51+N52+N53 -> 1,200,000.00 | O50: 1,200,000.00 | P50: 1,200,000.00 | Q50: 1,200,000.00
C51: Местный бюджет | D51: =SUM(E51:Q51) -> 13,015,117.36 | E51: 0.00 | F51: 0.00 | G51: 0.00 | H51: =H55+H59 -> 975,791.02 | I51: =I55+I59 -> 899,200.00 | J51: =J55+J59 -> 3,014,981.00 | K51: 1,117,100.00 | L51: =L55+L59 -> 1,008,045.34 | M51: =M55+M59 -> 1,200,000.00 | N51: 1,200,000.00 | O51: 1,200,000.00 | P51: 1,200,000.00 | Q51: =Q55+Q59 -> 1,200,000.00
C52: Областной бюджет | D52: 36,969,337.19 | E52: 0.00 | F52: 0.00 | G52: 0.00 | H52: =H56+H60 -> 10,568,894.02 | I52: =I56+I60 -> 8,092,062.37 | J52: 7,958,637.86 | K52: 9,037,717.34 | L52: =L56+L60 -> 1,312,025.60 | M52: =M56+M60 -> 0.00 | N52: 0.00 | O52: 0.00 | P52: 0.00 | Q52: =Q56+Q60 -> 0.00
C53: Федеральный бюджет | D53: 155,096,062.81 | E53: 0.00 | F53: 0.00 | G53: 0.00 | H53: =H57+H61 -> 35,262,405.98 | I53: =I57+I61 -> 31,741,337.63 | J53: =J57+J61 -> 30,843,662.14 | K53: 32,320,182.66 | L53: =L57+L61 -> 24,928,474.40 | M53: =M57+M61 -> 0.00 | N53: 0.00 | O53: 0.00 | P53: 0.00 | Q53: =Q57+Q61 -> 0.00
A54: Благоустройство дворовых территорий многоквартирных домов | B54: Отдел по благоустройству и экологии комитета по городскому хозяйству администрации города Усолье-Сибирское | C54: Всего | D54: 136,002,396.20 | E54: =SUM(E55:E57) -> 0.00 | F54: =SUM(F55:F57) -> 0.00 | G54: 0.00 | H54: =SUM(H55:H57) -> 23,586,322.10 | I54: =SUM(I55:I57) -> 35,767,048.96 | J54: =SUM(J55:J57) -> 30,002,481.00 | K54: =SUM(K55:K57) -> 29,579,030.00 | L54: =SUM(L55:L57) -> 13,567,514.14 | M54: =SUM(M55:M57) -> 700,000.00 | N54: 700,000.00 | O54: 700,000.00 | P54: 700,000.00 | Q54: =SUM(Q55:Q57) -> 700,000.00
C55: Местный бюджет | D55: 8,348,866.42 | E55: 0.00 | F55: 0.00 | G55: 0.00 | H55: 491,705.87 | I55: 789,582.07 | J55: 2,722,862.70 | K55: 777,933.71 | L55: 66,782.07 | M55: 700,000.00 | N55: 700,000.00 | O55: 700,000.00 | P55: 700,000.00 | Q55: 700,000.00
C56: Областной бюджет | D56: 24,995,343.23 | E56: 0.00 | F56: 0.00 | G56: 0.00 | H56: 5,325,717.38 | I56: 7,105,590.87 | J56: 5,595,250.87 | K56: 6,293,747.20 | L56: 675,036.91 | M56: 0.00 | N56: 0.00 | O56: 0.00 | P56: 0.00 | Q56: 0.00
C57: Федеральный бюджет | D57: 102,658,186.55 | E57: 0.00 | F57: 0.00 | G57: 0.00 | H57: 17,768,898.85 | I57: 27,871,876.02 | J57: 21,684,367.43 | K57: 22,507,349.09 | L57: 12,825,695.16 | M57: 0.00 | N57: 0.00 | O57: 0.00 | P57: 0.00 | Q57: 0.00
A58: Благоустройство территорий общего пользования | B58: Отдел по благоустройству и экологии комитета по городскому хозяйству администрации города Усолье-Сибирское | C58: Всего | D58: =SUM(E58:Q58) -> 69,078,121.16 | E58: =SUM(E59:E61) -> 0.00 | F58: 0.00 | G58: 0.00 | H58: 23,220,768.92 | I58: 4,965,551.04 | J58: 11,814,800.00 | K58: 12,895,970.00 | L58: 13,681,031.20 | M58: 500,000.00 | N58: =SUM(N59:N61) -> 500,000.00 | O58: 500,000.00 | P58: 500,000.00 | Q58: 500,000.00
C59: Местный бюджет | D59: =SUM(E59:Q59) -> 4,666,250.94 | E59: 0.00 | F59: 0.00 | G59: 0.00 | H59: 484,085.15 | I59: 109,617.93 | J59: 292,118.30 | K59: 339,166.29 | L59: =63017.93+878245.34 -> 941,263.27 | M59: 500,000.00 | N59: 500,000.00 | O59: 500,000.00 | P59: 500,000.00 | Q59: 500,000.00
C60: Областной бюджет | D60: 11,973,993.96 | E60: 0.00 | F60: 0.00 | G60: 0.00 | H60: 5,243,176.64 | I60: 986,471.50 | J60: 2,363,386.99 | K60: 2,743,970.14 | L60: 636,988.69 | M60: 0.00 | N60: 0.00 | O60: 0.00 | P60: 0.00 | Q60: 0.00
C61: Федеральный бюджет | D61: 52,437,876.26 | E61: 0.00 | F61: 0.00 | G61: 0.00 | H61: 17,493,507.13 | I61: 3,869,461.61 | J61: 9,159,294.71 | K61: 9,812,833.57 | L61: 12,102,779.24 | M61: 0.00 | N61: 0.00 | O61: 0.00 | P61: 0.00 | Q61: 0.00
A62: Мероприятие 1.2. Создание комфортной городской среды в малых городах и исторических поселениях - победителях Всероссийского конкурса лучших проектов создания комфортной городской среды (озеро Молодежное) | B62: Отдел по благоустройству и экологии комитета по городскому хозяйству администрации города Усолье-Сибирское | C62: Всего | D62: 96,992,300.00 | E62: =E63+E64 -> 0.00 | F62: =F63+F64 -> 0.00 | G62: 0.00 | H62: 96,992,300.00 | I62: 0.00 | J62: 0.00 | K62: 0.00 | L62: =L63+L64 -> 0.00 | M62: =M63+M64 -> 0.00 | N62: 0.00 | O62: 0.00 | P62: 0.00 | Q62: 0.00
C63: Областной бюджет | D63: 16,992,300.00 | E63: 0.00 | F63: 0.00 | G63: 0.00 | H63: 16,992,300.00 | I63: 0.00 | J63: 0.00 | K63: 0.00 | L63: 0.00 | M63: 0.00 | N63: 0.00 | O63: 0.00 | P63: 0.00 | Q63: 0.00
C64: Федеральный бюджет | D64: 80,000,000.00 | E64: 0.00 | F64: 0.00 | G64: 0.00 | H64: 80,000,000.00 | I64: 0.00 | J64: 0.00 | K64: 0.00 | L64: 0.00 | M64: 0.00 | N64: 0.00 | O64: 0.00 | P64: 0.00 | Q64: 0.00
A65: Мероприятие 1.3. «Концепция благоустройства ул. Интернациональной «Город из трамвайного окна» в г. Усолье-Сибирское» | B65: Отдел по благоустройству и экологии комитета по городскому хозяйству администрации города Усолье-Сибирское | C65: Всего | D65: 108,560,304.40 | E65: =E66 -> 0.00 | F65: =F66 -> 0.00 | G65: 0.00 | H65: 0.00 | I65: 0.00 | J65: =J66+J67+J68 -> 108,560,304.40 | K65: 0.00 | L65: 0.00 | M65: 0.00 | N65: 0.00 | O65: 0.00 | P65: 0.00 | Q65: 0.00
C66: Местный бюджет | D66: 12,560,304.40 | E66: 0.00 | F66: 0.00 | G66: 0.00 | H66: 0.00 | I66: 0.00 | J66: 12,560,304.40 | K66: 0.00 | L66: 0.00 | M66: 0.00 | N66: 0.00 | O66: 0.00 | P66: 0.00 | Q66: 0.00
C67: Областной бюджет | D67: 1,000,000.00 | E67: 0.00 | F67: 0.00 | G67: 0.00 | H67: 0.00 | I67: 0.00 | J67: 1,000,000.00 | K67: 0.00 | L67: 0.00 | M67: 0.00 | N67: 0.00 | O67: 0.00 | P67: 0.00 | Q67: 0.00
C68: Федеральный бюджет | D68: 95,000,000.00 | E68: 0.00 | F68: 0.00 | G68: 0.00 | H68: 0.00 | I68: 0.00 | J68: 95,000,000.00 | K68: 0.00 | L68: 0.00 | M68: 0.00 | N68: 0.00 | O68: 0.00 | P68: 0.00 | Q68: 0.00
A69: Мероприятие 1.4. «Город из трамвайного окна 2: молекулярное наследие. Концепция благоустройства территории улиц Менделеева и Интернациональная в г. Усолье-Сибирское» | B69: Отдел по благоустройству и экологии комитета по городскому хозяйству администрации города Усолье-Сибирское | C69: Всего | D69: 135,000,000.00 | E69: =E70 -> 0.00 | F69: =F70 -> 0.00 | G69: 0.00 | H69: 0.00 | I69: 0.00 | J69: 0.00 | K69: =K70+K71+K72 -> 135,000,000.00 | L69: =L70+L71+L72 -> 0.00 | M69: =M70+M71+M72 -> 0.00 | N69: 0.00 | O69: 0.00 | P69: 0.00 | Q69: 0.00
C70: Местный бюджет | D70: 4,500,000.00 | E70: 0.00 | F70: 0.00 | G70: 0.00 | H70: 0.00 | I70: 0.00 | J70: 0.00 | K70: 4,500,000.00 | L70: 0.00 | M70: 0.00 | N70: 0.00 | O70: 0.00 | P70: 0.00 | Q70: 0.00
C71: Областной бюджет | D71: 31,794,500.00 | E71: 0.00 | F71: 0.00 | G71: 0.00 | H71: 0.00 | I71: 0.00 | J71: 0.00 | K71: 31,794,500.00 | L71: 0.00 | M71: 0.00 | N71: 0.00 | O71: 0.00 | P71: 0.00 | Q71: 0.00
C72: Федеральный бюджет | D72: 98,705,500.00 | E72: 0.00 | F72: 0.00 | G72: 0.00 | H72: 0.00 | I72: 0.00 | J72: 0.00 | K72: 98,705,500.00 | L72: 0.00 | M72: 0.00 | N72: 0.00 | O72: 0.00 | P72: 0.00 | Q72: 0.00
A73: Основное мероприятие 2. Мероприятия по благоустройству дворовых территорий многоквартирных домов | B73: Отдел по благоустройству и экологии комитета по городскому хозяйству администрации города Усолье-Сибирское | C73: Местный бюджет | D73: =SUM(E73:Q73) -> 4,092,707.86 | E73: 0.00 | F73: 0.00 | G73: 0.00 | H73: =H76 -> 2,511,453.24 | I73: =I76 -> 507,931.56 | J73: 1,073,323.06 | K73: 0.00 | L73: =L76 -> 0.00 | M73: 0.00 | N73: 0.00 | O73: 0.00 | P73: 0.00 | Q73: 0.00
A74: Мероприятие 2.1. Благоустройство объектов недвижимого имущества (включая объекты незавершенного строительства) и земельных участков, находящихся в собственности (пользовании) юридических лиц и индивидуальных предпринимателей в целях реализации федерального проекта «Формирование комфортной городской среды» | B74: Отдел по благоустройству и экологии комитета по городскому хозяйству администрации города Усолье-Сибирское | C74: Местный бюджет | D74: - | E74: - | F74: - | G74: - | H74: за счет средств собственников объектов недвижимого имущества и земельных участков, находящихся в собственности (пользовании) юридических лиц и индивидуальных предпринимателей. | I74: за счет средств собственников объектов недвижимого имущества и земельных участков, находящихся в собственности (пользовании) юридических лиц и индивидуальных предпринимателей. | J74: за счет средств собственников объектов недвижимого имущества и земельных участков, находящихся в собственности (пользовании) юридических лиц и индивидуальных предпринимателей. | K74: за счет средств собственников объектов недвижимого имущества и земельных участков, находящихся в собственности (пользовании) юридических лиц и индивидуальных предпринимателей. | L74: за счет средств собственников объектов недвижимого имущества и земельных участков, находящихся в собственности (пользовании) юридических лиц и индивидуальных предпринимателей. | M74: за счет средств собственников объектов недвижимого имущества и земельных участков, находящихся в собственности (пользовании) юридических лиц и индивидуальных предпринимателей. | N74: за счет средств собственников объектов недвижимого имущества и земельных участков, находящихся в собственности (пользовании) юридических лиц и индивидуальных предпринимателей. | O74: за счет средств собственников объектов недвижимого имущества и земельных участков, находящихся в собственности (пользовании) юридических лиц и индивидуальных предпринимателей. | P74: за счет средств собственников объектов недвижимого имущества и земельных участков, находящихся в собственности (пользовании) юридических лиц и индивидуальных предпринимателей. | Q74: за счет средств собственников объектов недвижимого имущества и земельных участков, находящихся в собственности (пользовании) юридических лиц и индивидуальных предпринимателей.
A75: Мероприятие 2.2. Мероприятия по проведению работ по образованию земельных участков, на которых расположены многоквартирные дома в целях реализации федерального проекта «Формирование комфортной городской среды» | B75: Комитет по управлению муниципальным имуществом администрации города Усолье-Сибирское | C75: Местный бюджет | D75: - | E75: - | F75: - | G75: - | H75: без финансирования | I75: без финансирования | J75: без финансирования | K75: без финансирования | L75: без финансирования | M75: без финансирования | N75: без финансирования | O75: без финансирования | P75: без финансирования | Q75: без финансирования
A76: Мероприятие 2.3. Благоустройство дворовых территорий многоквартирных домов в целях реализации федерального проекта "Формирование комфортной городской среды" | B76: Отдел по благоустройству и экологии комитета по городскому хозяйству администрации города Усолье-Сибирское | C76: Местный бюджет | D76: =SUM(E76:Q76) -> 4,092,707.86 | E76: 0.00 | F76: 0.00 | G76: 0.00 | H76: 2,511,453.24 | I76: 507,931.56 | J76: 1,073,323.06 | K76: 0.00 | L76: 0.00 | M76: 0.00 | N76: 0.00 | O76: 0.00 | P76: 0.00 | Q76: 0.00
A77: Основное мероприятие 3. Мероприятия по благоустройству территорий общего пользования | B77: Отдел по благоустройству и экологии комитета по городскому хозяйству администрации города Усолье-Сибирское | C77: Всего | D77: =SUM(E77:Q77) -> 71,333,784.47 | E77: =E78+E79 -> 0.00 | F77: 0.00 | G77: 0.00 | H77: =H78+H79 -> 8,483,783.30 | I77: =I78+I79 -> 0.00 | J77: =J78+J79 -> 14,585,287.59 | K77: 40,064,713.58 | L77: =L78+L79 -> 0.00 | M77: =M78+M79 -> 8,200,000.00 | N77: 0.00 | O77: 0.00 | P77: 0.00 | Q77: 0.00
C78: Местный бюджет | D78: =SUM(E78:Q78) -> 54,491,948.58 | E78: =E80+E81+E82+E84+E87+E90+E92 -> 0.00 | F78: =F80+F81+F82+F84+F87+F90+F92 -> 0.00 | G78: 0.00 | H78: 5,392,313.21 | I78: 0.00 | J78: 5,386,881.86 | K78: =K80+K81+K82+K84+K87+K90+K92+K93+K95+K98 -> 35,512,753.51 | L78: =L80+L81+L82+L84+L87+L90+L92+L93+L95 -> 0.00 | M78: =M80+M81+M82+M84+M87+M90+M92+M93+M95+M98+M101+M104 -> 8,200,000.00 | N78: =N80+N81+N82+N84+N87+N90+N92+N93+N95 -> 0.00 | O78: 0.00 | P78: 0.00 | Q78: 0.00
C79: Областной бюджет | D79: 16,841,835.89 | E79: 0.00 | F79: 0.00 | G79: 0.00 | H79: =H85+H88 -> 3,091,470.09 | I79: 0.00 | J79: =J91 -> 9,198,405.73 | K79: =K85+K88+K91+K96+K99 -> 4,551,960.07 | L79: =L85+L88+L91+L96 -> 0.00 | M79: =M85+M88+M91+M96 -> 0.00 | N79: 0.00 | O79: 0.00 | P79: 0.00 | Q79: 0.00
A80: Мероприятие 3.1. Разработка проектно-сметной документации на благоустройство общественного пространства вокруг озера «Молодёжное» | B80: Отдел по благоустройству и экологии комитета по городскому хозяйству администрации города Усолье-Сибирское | C80: Местный бюджет | D80: =SUM(E80:Q80) -> 2,600,000.00 | E80: 0.00 | F80: 0.00 | G80: 0.00 | H80: 2,600,000.00 | I80: 0.00 | J80: 0.00 | K80: 0.00 | L80: 0.00 | M80: 0.00 | N80: 0.00 | O80: 0.00 | P80: 0.00 | Q80: 0.00
A81: Мероприятие 3.2. Разработка раздела «Оценка воздействия на водные биоресурсы и среду их обитания по объекту: озеро «Молодёжное»» | B81: Отдел по благоустройству и экологии комитета по городскому хозяйству администрации города Усолье-Сибирское | C81: Местный бюджет | D81: =SUM(E81:Q81) -> 102,800.00 | E81: 0.00 | F81: 0.00 | G81: 0.00 | H81: 102,800.00 | I81: 0.00 | J81: 0.00 | K81: 0.00 | L81: 0.00 | M81: 0.00 | N81: 0.00 | O81: 0.00 | P81: 0.00 | Q81: 0.00
A82: Мероприятие 3.3. Благоустройство территории озера "Молодёжное" в целях реализации проектов создания комфортной городской среды в малых городах и исторических поселениях | B82: Отдел по благоустройству и экологии комитета по городскому хозяйству администрации города Усолье-Сибирское | C82: Местный бюджет | D82: =SUM(E82:Q82) -> 2,346,016.53 | E82: 0.00 | F82: 0.00 | G82: 0.00 | H82: 2,346,016.53 | I82: 0.00 | J82: 0.00 | K82: 0.00 | L82: 0.00 | M82: 0.00 | N82: 0.00 | O82: 0.00 | P82: 0.00 | Q82: 0.00
A83: Мероприятие 3.4. Благоустройство территории озера "Молодежное" (в рамках реализации перечня проектов Народных инициатив) | B83: Отдел по благоустройству и экологии комитета по городскому хозяйству администрации города Усолье-Сибирское | C83: Всего | D83: =SUM(E83:Q83) -> 3,343,766.77 | E83: 0.00 | F83: 0.00 | G83: =SUM(G84:G85) -> 0.00 | H83: 3,343,766.77 | I83: 0.00 | J83: 0.00 | K83: 0.00 | L83: =SUM(L84:L85) -> 0.00 | M83: 0.00 | N83: 0.00 | O83: 0.00 | P83: 0.00 | Q83: 0.00
C84: Местный бюджет | D84: =SUM(E84:Q84) -> 334,376.68 | E84: 0.00 | F84: 0.00 | G84: =G110+G112 -> 0.00 | H84: 334,376.68 | I84: =I110+I112 -> 0.00 | J84: =J110+J112 -> 0.00 | K84: 0.00 | L84: =L110+L112 -> 0.00 | M84: =M110+M112 -> 0.00 | N84: 0.00 | O84: 0.00 | P84: 0.00 | Q84: 0.00
C85: Областной бюджет | D85: 3,009,390.09 | E85: 0.00 | F85: 0.00 | G85: 0.00 | H85: 3,009,390.09 | I85: 0.00 | J85: 0.00 | K85: 0.00 | L85: 0.00 | M85: 0.00 | N85: 0.00 | O85: 0.00 | P85: 0.00 | Q85: 0.00
A86: Мероприятие 3.5. Благоустройство территории острова "Варничный" (в рамках реализации перечня проектов Народных инициатив) | B86: Отдел по благоустройству и экологии комитета по городскому хозяйству администрации города Усолье-Сибирское | C86: Всего | D86: 91,200.00 | E86: 0.00 | F86: 0.00 | G86: =SUM(G87:G88) -> 0.00 | H86: 91,200.00 | I86: 0.00 | J86: 0.00 | K86: 0.00 | L86: =SUM(L87:L88) -> 0.00 | M86: 0.00 | N86: 0.00 | O86: 0.00 | P86: 0.00 | Q86: 0.00
C87: Местный бюджет | D87: 9,120.00 | E87: 0.00 | F87: 0.00 | G87: =G113+G115 -> 0.00 | H87: 9,120.00 | I87: =I113+I115 -> 0.00 | J87: 0.00 | K87: 0.00 | L87: =L113+L115 -> 0.00 | M87: =M113+M115 -> 0.00 | N87: 0.00 | O87: 0.00 | P87: 0.00 | Q87: 0.00
C88: Областной бюджет | D88: 82,080.00 | E88: 0.00 | F88: 0.00 | G88: 0.00 | H88: 82,080.00 | I88: 0.00 | J88: 0.00 | K88: 0.00 | L88: 0.00 | M88: 0.00 | N88: 0.00 | O88: 0.00 | P88: 0.00 | Q88: 0.00
A89: Мероприятие 3.6. Благоустройство ул. Интернациональной, в рамках проекта «Город из трамвайного окна» в г. Усолье-Сибирское (Победитель VI Всероссийского конкурса лучших проектов создания комфортной городской среды в категории «Малые города России») (приобретение и установка МАФов и остановочных павильонов) | B89: Отдел по благоустройству и экологии комитета по городскому хозяйству администрации города Усолье-Сибирское | C89: Всего | D89: 10,335,287.59 | E89: =E90+E91 -> 0.00 | F89: =F90+F91 -> 0.00 | G89: 0.00 | H89: 0.00 | I89: 0.00 | J89: 10,335,287.59 | K89: 0.00 | L89: =L90+L91 -> 0.00 | M89: 0.00 | N89: 0.00 | O89: 0.00 | P89: 0.00 | Q89: 0.00
C90: Местный бюджет | D90: 1,136,881.86 | E90: 0.00 | F90: 0.00 | G90: 0.00 | H90: 0.00 | I90: 0.00 | J90: 1,136,881.86 | K90: 0.00 | L90: 0.00 | M90: 0.00 | N90: 0.00 | O90: 0.00 | P90: 0.00 | Q90: 0.00
C91: Областной бюджет | D91: 9,198,405.73 | E91: 0.00 | F91: 0.00 | G91: 0.00 | H91: 0.00 | I91: 0.00 | J91: 9,198,405.73 | K91: 0.00 | L91: 0.00 | M91: 0.00 | N91: 0.00 | O91: 0.00 | P91: 0.00 | Q91: 0.00
A92: Мероприятие 3.7. Разработка проектно-сметной документации в рамках проекта "Город из трамвайного окна 2: молекулярное наследие. Концепция благоустройства территории улиц Менделеева и Интернациональная в г. Усолье-Сибирское" | B92: Отдел по благоустройству и экологии комитета по городскому хозяйству администрации города Усолье-Сибирское | C92: Местный бюджет | D92: 4,250,000.00 | E92: 0.00 | F92: 0.00 | G92: 0.00 | H92: 0.00 | I92: 0.00 | J92: 4,250,000.00 | K92: 0.00 | L92: 0.00 | M92: 0.00 | N92: 0.00 | O92: 0.00 | P92: 0.00 | Q92: 0.00
A93: Мероприятие 3.8. Благоустройство территории с возведением малой архитектурной формы - фонтан, в районе МБКДУ «Дворец культуры» | B93: МБКДУ «Дворец культуры» | C93: Местный бюджет | D93: =SUM(E93:Q93) -> 34,890,151.58 | E93: 0.00 | F93: 0.00 | G93: 0.00 | H93: 0.00 | I93: 0.00 | J93: 0.00 | K93: 34,890,151.58 | L93: 0.00 | M93: 0.00 | N93: 0.00 | O93: 0.00 | P93: 0.00 | Q93: 0.00
A94: Мероприятие 3.9. Благоустройство ул. Интернациональная, в рамках проекта «Город из трамвайного окна 2: молекулярное наследие» в г. Усолье-Сибирское (Победитель VIII Всероссийского конкурса лучших проектов создания комфортной городской среды в категории «Малые города России») (Благоустройство территории на пересечении улиц Ленина и Менделеева) | B94: Отдел по благоустройству и экологии комитета по городскому хозяйству администрации города Усолье-Сибирское | C94: Всего | D94: =SUM(E94:Q94) -> 4,999,000.00 | E94: =E95+E96 -> 0.00 | F94: =F95+F96 -> 0.00 | G94: 0.00 | H94: 0.00 | I94: 0.00 | J94: 0.00 | K94: 4,999,000.00 | L94: 0.00 | M94: =M95+M96 -> 0.00 | N94: 0.00 | O94: 0.00 | P94: 0.00 | Q94: 0.00
C95: Местный бюджет | D95: 549,890.11 | E95: 0.00 | F95: 0.00 | G95: 0.00 | H95: 0.00 | I95: 0.00 | J95: 0.00 | K95: 549,890.11 | L95: 0.00 | M95: 0.00 | N95: 0.00 | O95: 0.00 | P95: 0.00 | Q95: 0.00
C96: Областной бюджет | D96: 4,449,109.89 | E96: 0.00 | F96: 0.00 | G96: 0.00 | H96: 0.00 | I96: 0.00 | J96: 0.00 | K96: 4,449,109.89 | L96: 0.00 | M96: 0.00 | N96: 0.00 | O96: 0.00 | P96: 0.00 | Q96: 0.00
A97: Мероприятие 3.10. Благоустройство территории озера "Молодежное" (установка баскетбольных щитов) | B97: Отдел по благоустройству и экологии комитета по городскому хозяйству администрации города Усолье-Сибирское | C97: Всего | D97: =SUM(E97:Q97) -> 175,562.00 | E97: 0.00 | F97: 0.00 | G97: =SUM(G98:G99) -> 0.00 | H97: 0.00 | I97: 0.00 | J97: 0.00 | K97: 175,562.00 | L97: 0.00 | M97: =SUM(M98:M99) -> 0.00 | N97: 0.00 | O97: 0.00 | P97: 0.00 | Q97: 0.00
C98: Местный бюджет | D98: =SUM(E98:Q98) -> 72,711.82 | E98: 0.00 | F98: 0.00 | G98: =G124+G126 -> 0.00 | H98: 0.00 | I98: =I124+I126 -> 0.00 | J98: =J124+J126 -> 0.00 | K98: =12711.82+60000 -> 72,711.82 | L98: =L124+L126 -> 0.00 | M98: =M124+M126 -> 0.00 | N98: 0.00 | O98: 0.00 | P98: 0.00 | Q98: 0.00
C99: Областной бюджет | D99: 102,850.18 | E99: 0.00 | F99: 0.00 | G99: 0.00 | H99: 0.00 | I99: 0.00 | J99: 0.00 | K99: 102,850.18 | L99: 0.00 | M99: 0.00 | N99: 0.00 | O99: 0.00 | P99: 0.00 | Q99: 0.00
A100: Мероприятие 3.11. «Архитектурно-пространственная концепция благоустройства Комсомольского и Ленинского проспектов в г. Усолье-Сибирское Иркутской области. Первый этап: «Город говорит». Концепция благоустройства Комсомольского проспекта в г. Усолье-Сибирское Иркутской области» | B100: Отдел по благоустройству и экологии комитета по городскому хозяйству администрации города Усолье-Сибирское | C100: Всего | D100: =SUM(E100:Q100) -> 7,000,000.00 | E100: 0.00 | F100: 0.00 | G100: =SUM(G101:G102) -> 0.00 | H100: 0.00 | I100: =SUM(I101:I102) -> 0.00 | J100: 0.00 | K100: 0.00 | L100: 0.00 | M100: 7,000,000.00 | N100: 0.00 | O100: 0.00 | P100: 0.00 | Q100: 0.00
C101: Местный бюджет | D101: =SUM(E101:Q101) -> 7,000,000.00 | E101: 0.00 | F101: 0.00 | G101: =G127+G129 -> 0.00 | H101: 0.00 | I101: =I127+I129 -> 0.00 | J101: =J127+J129 -> 0.00 | K101: 0.00 | L101: =L127+L129 -> 0.00 | M101: 7,000,000.00 | N101: 0.00 | O101: 0.00 | P101: 0.00 | Q101: 0.00
C102: Областной бюджет | D102: 0.00 | E102: 0.00 | F102: 0.00 | G102: 0.00 | H102: 0.00 | I102: 0.00 | J102: 0.00 | K102: 0.00 | L102: 0.00 | M102: 0.00 | N102: 0.00 | O102: 0.00 | P102: 0.00 | Q102: 0.00
A103: Мероприятие 3.12. «Разработка документации для участия во всероссийском конкурсе лучших проектов создания комфортной среды в категории «малые города»» | B103: Отдел по благоустройству и экологии комитета по городскому хозяйству администрации города Усолье-Сибирское | C103: Всего | D103: =SUM(E103:Q103) -> 1,200,000.00 | E103: =SUM(E104:E105) -> 0.00 | F103: =SUM(F104:F105) -> 0.00 | G103: 0.00 | H103: 0.00 | I103: 0.00 | J103: 0.00 | K103: 0.00 | L103: 0.00 | M103: 1,200,000.00 | N103: 0.00 | O103: 0.00 | P103: 0.00 | Q103: 0.00
C104: Местный бюджет | D104: =SUM(E104:Q104) -> 1,200,000.00 | E104: 0.00 | F104: 0.00 | G104: 0.00 | H104: 0.00 | I104: 0.00 | J104: 0.00 | K104: 0.00 | L104: 0.00 | M104: 1,200,000.00 | N104: 0.00 | O104: 0.00 | P104: 0.00 | Q104: 0.00
C105: Областной бюджет | D105: =SUM(E105:Q105) -> 0.00 | E105: 0.00 | F105: 0.00 | G105: 0.00 | H105: 0.00 | I105: 0.00 | J105: 0.00 | K105: 0.00 | L105: 0.00 | M105: 0.00 | N105: 0.00 | O105: 0.00 | P105: 0.00 | Q105: 0.00
C106: Целевые средства | D106: =SUM(E106:Q106) -> 0.00 | E106: 0.00 | F106: 0.00 | G106: 0.00 | H106: 0.00 | I106: 0.00 | J106: 0.00 | K106: 0.00 | L106: 0.00 | M106: 0.00 | N106: 0.00 | O106: 0.00 | P106: 0.00 | Q106: 0.00 | R106: ».
A108: Мэр города | H108: М.В. Торопкин
